Cogmind - Beta 13 @@@ ROGUE MODE // 2024.04.25 @ 21:45:15 Player: monkeman Result: Destroyed by G-47 Trooper with Particle Gun Performance ------------- Evolutions (3) 1500 Regions Visited (10) 2000 Robots Destroyed (137) 685 Value Destroyed (4746) 4746 Prototype IDs (17) 340 Alien Tech Used (0) 0 Bonus (1700) 1700 TOTAL SCORE: 10971 Bonus ------- High Alert Combat Kills 465 Follower Combat Kills 960 Entered Garrisons 400 Friendly Fire -125 Cogmind --------- Core Integrity 0/700 Matter 300/300 Energy 155/155 System Corruption 12% Temperature Cool (9) Movement Hovering (76) Location -7/Factory Parts ------- > --- POWER (1) -------- Multi-Nuclear Core > --- PROPULSION (3) --- Hovering Airjet-Cooled Exoskeleton > --- UTILITY (6) ------ Armored Scrap Engine Medium Storage Unit Target Analyzer Advanced ECM Suite (fused) > --- WEAPON (3) ------- Flak Directed Ion Construct/C Thermal Shock Construct/G Great Axe > --- INVENTORY (10) --- Light Nuclear Core Improved Heat Sink Huge Storage Unit High-capacity Matter Pod (200) Hardened Medium Armor Plating Authchip [R/Combat] High-powered Tractor Beam Drone Bay (2/2) Shock Rifle Improved Grenade Launcher Peak State ------------ > --- POWER ------------ Multi-Nuclear Core > --- PROPULSION ------- Hovering Airjet-Cooled Exoskeleton > --- UTILITY ---------- Armored Scrap Engine Coolant Injector Medium Storage Unit Target Analyzer Advanced ECM Suite > --- WEAPON ----------- Flak Directed Ion Construct/C Thermal Shock Construct/G Great Axe > --- INVENTORY -------- Light Nuclear Core Improved Heat Sink Huge Storage Unit High-capacity Matter Pod Hardened Medium Armor Plating Authchip [R/Combat] High-powered Tractor Beam Drone Bay Shock Rifle Improved Grenade Launcher [Rating: 67] Favorites ----------- Power Heavy Ion Engine Engine Heavy Ion Engine Power Core Constructs Propulsion Light Treads Treads Light Treads Leg Aluminum Leg Wheel Armored Wheel Hover Unit Constructs Utility Armored Scrap Engine Device Armored Scrap Engine Storage Huge Storage Unit Processor Improved Targeting Computer Hackware Hacking Suite Protection Hardened Light Armor Plating Weapon Flak Cannon Energy Gun Constructs Energy Cannon Particle Cannon Ballistic Gun Light Assault Rifle Ballistic Cannon Flak Cannon Launcher Grenade Launcher Impact Weapon Heavy Hammer Slashing Weapon Great Axe Build | -11 -10 -10 -9 -9 -9 -7 -7 -7 -7 -7 ------- Run | Yrd Mat Min Mat Sto Rec Fac Gar Fac Gar Fac Slots Evolved 6 | . . . 2 . . 4 . . . . Power . | . . . . . . . . . . . Propulsion 1 | . . . 1 . . . . . . . Utility 4 | . . . 1 . . 3 . . . . Weapon 1 | . . . . . . 1 . . . . Parts Attached 119 | 7 12 3 33 14 2 4 20 6 7 11 Power 8 | 1 2 . 3 . . . 1 . . 1 Engine 7 | 1 2 . 3 . . . 1 . . . Core 1 | . . . . . . . . . . 1 Reactor . | . . . . . . . . . . . Propulsion 24 | 2 2 . 12 3 1 . 4 . . . Treads 18 | 2 2 . 11 2 1 . . . . . Leg 3 | . . . . . . . 3 . . . Wheel 3 | . . . 1 1 . . 1 . . . Hover . | . . . . . . . . . . . Flight . | . . . . . . . . . . . Utility 45 | 2 4 . 10 5 1 3 7 4 2 7 Device 17 | 1 . . 3 2 1 1 2 2 1 4 Storage 6 | 1 2 . 1 . . . . 1 . 1 Processor 6 | . . . 1 . . 1 1 1 1 1 Hackware 2 | . . . . 1 . 1 . . . . Protection 14 | . 2 . 5 2 . . 4 . . 1 Artifact . | . . . . . . . . . . . Weapon 42 | 2 4 3 8 6 . 1 8 2 5 3 Energy Gun 10 | . 1 . 1 . . . 3 2 2 1 Energy Cannon 4 | . 1 1 2 . . . . . . . Ballistic Gun 9 | 2 1 1 3 . . . 1 . . 1 Ballistic Cannon 6 | . . . 2 3 . . 1 . . . Launcher 9 | . 1 1 . 2 . . 3 . 2 . Special Weapon . | . . . . . . . . . . . Impact Weapon 3 | . . . . 1 . 1 . . 1 . Slashing Weapon 1 | . . . . . . . . . . 1 Piercing Weapon . | . . . . . . . . . . . Special Melee Weapon . | . . . . . . . . . . . Unidentified Prototypes 1 | . . . 1 . . . . . . . Parts Lost 29 | . . . 4 3 . . 12 . 10 . Power 3 | . . . 1 . . . 1 . 1 . Propulsion 10 | . . . 1 3 . . 3 . 3 . Utility 6 | . . . 1 . . . 3 . 2 . Weapon 10 | . . . 1 . . . 5 . 4 . Highest Loss Streak 8 | . . . 2 1 . . 5 . 8 . To Critical Strikes . | . . . . . . . . . . . Average Slot Usage (%) 86 | . 99 100 99 99 72 67 85 82 60 71 Engine 8 | . 13 14 10 11 11 7 6 4 4 . Core 1 | . . . . . . . . 2 2 6 Treads 15 | . 27 28 29 24 17 15 5 . . . Leg 2 | . . . . . . . 7 11 5 3 Wheel 4 | . . . 3 8 11 7 6 7 2 . Device 10 | . 6 . 8 10 11 9 7 13 13 17 Storage 9 | . 14 14 11 11 11 7 7 7 7 7 Processor 3 | . . . 2 . . 6 6 7 3 8 Hackware 3 | . . . . 10 . . 7 7 2 . Protection 4 | . 7 14 10 . . . 6 1 . . Energy Gun 3 | . . . 3 . . . 6 11 10 3 Energy Cannon 4 | . 7 13 7 . 7 . . . . 2 Ballistic Gun 5 | . 19 14 4 . . . 6 4 . 4 Ballistic Cannon 5 | . . . 6 21 3 7 3 . . 2 Naked Turns . | . . . . . . . . . . . Heaviest Build 109 | 11 32 32 106 108 101 103 109 103 30 48 Greatest Support 70 | 40 40 40 68 68 12 12 42 12 36 70 Greatest Overweight (x) 9 | . . . 3 8 8 8 9 8 8 2 Average Overweight (x) 3 | . . . 1 6 7 8 8 5 1 . Largest Inventory Capacity 25 | 8 15 15 25 25 25 25 25 25 10 10 Average Capacity 18 | 7 10 15 17 25 25 25 25 21 10 10 Most Carried 25 | 5 15 15 21 25 25 25 25 23 10 10 Average Carried 16 | 2 9 15 15 22 22 24 20 19 9 9 Final Capacity 25 | 8 15 15 25 25 25 25 25 10 10 10 Final Carried 25 | 5 15 15 21 23 25 23 20 10 8 10 Scrap Engine Consumption 140 | . . . . . 27 . 13 33 20 47 Constructs Created 13 | . . . . . 2 . 3 3 2 3 Constructs Modified 37 | . . . . . 4 . 2 6 4 21 Class Distribution -------------------- 45% | Mutant 26% | Construct 10% | Scavenger-Mutant 8% | Scavenger-Gunner 5% | Commander-Mutant Dominant Class ---------------- Mutant | -10/Materials Mutant | -10/Mines Mutant | -9/Materials Mutant | -9/Storage Construct | -9/Recycling Mutant | -7/Factory Scavenger-Gunner | -7/Garrison Scavenger-Mutant | -7/Factory Mutant | -7/Garrison Construct | -7/Factory Resources | -11 -10 -10 -9 -9 -9 -7 -7 -7 -7 -7 ----------- Run | Yrd Mat Min Mat Sto Rec Fac Gar Fac Gar Fac Matter Collected 3628 | 224 422 37 725 557 52 . 676 312 163 460 Remotely 153 | . . . . . . . 153 . . . Salvage Created 5197 | 19 467 15 1901 520 . . 621 167 864 623 Parts 283 | 5 31 1 131 30 . . 19 14 18 34 Haulers Intercepted 9 | . 2 . 4 2 . . . 1 . . Recyclers Shooed 3 | . . . 1 1 1 . . . . . Parts Field Recycled . | . . . . . . . . . . . Retrieved Matter . | . . . . . . . . . . . Parts Self-Destructed . | . . . . . . . . . . . Prevented . | . . . . . . . . . . . Kills | -11 -10 -10 -9 -9 -9 -7 -7 -7 -7 -7 ------- Run | Yrd Mat Min Mat Sto Rec Fac Gar Fac Gar Fac Combat Hostiles Destroyed 99 | . 10 3 38 12 . . 19 2 5 10 Melee 1 | . . . . . . . . . 1 . Guns 33 | . 4 . 12 . . . 9 1 3 4 Cannons 55 | . 3 . 26 12 . . 8 . . 6 AOE 10 | . 3 3 . . . . 2 1 1 . Classes Destroyed 13 | 1 5 . 6 . . . 1 . . . Worker 5 | . . . 3 2 . . . . . . Builder 4 | . . . 2 . . . . 2 . . Tunneler 2 | 1 . . 1 . . . . . . . Hauler 9 | . 2 . 4 2 . . . 1 . . Recycler 5 | . . . 1 1 . . . . . 3 Operator 3 | . 1 . 2 . . . . . . . Watcher 10 | . 2 . 5 1 . . . . . 2 Swarmer 21 | . 3 3 8 . . . 3 1 . 3 Grunt 44 | . 7 . 18 6 . . 9 . 1 3 Brawler 2 | . . . 1 1 . . . . . . Duelist 4 | . . . 1 1 . . . . 2 . Sentry 21 | . . . 10 4 . . 5 1 . 1 Programmer 7 | . . . . . . . 2 . 2 3 Best Kill Streak 7 | 1 4 3 7 4 . . 3 3 1 4 Combat Bots Only 4 | . 3 3 4 4 . . 3 1 1 3 Max Kills in Single Turn 3 | 1 3 2 2 1 . . 2 3 1 2 Gunslinging . | . . . . . . . . . . . Exploded 3 | . 3 2 . . . . 1 1 1 . Melee 1 | . . . . . . . . . 1 . Uniques/NPCs Destroyed . | . . . . . . . . . . . Combat | -11 -10 -10 -9 -9 -9 -7 -7 -7 -7 -7 -------- Run | Yrd Mat Min Mat Sto Rec Fac Gar Fac Gar Fac Hostile Shots Fired 784 | . 39 9 173 24 . . 368 . 67 104 Missed 223 | . 14 2 32 10 . . 113 . 13 39 Damage Taken 7470 | . 317 55 1788 305 . . 2601 64 1329 1011 Core 1195 | . 97 15 327 51 . . 273 . 274 158 Absorbed by Shields 276 | . . . . . . . 276 . . . Regen/Repaired (Parts) 1192 | . . . . . . . 101 232 160 699 Core Remaining (%) 53 | 100 . 55 . . 5 . . . . . Volleys Fired 358 | 1 46 4 134 33 4 . 72 9 26 29 Largest 3 | 2 2 2 2 2 1 . 3 3 3 2 Hottest 152 | 40 80 53 133 88 74 . 124 128 152 110 Shots Fired 686 | 2 90 8 265 63 4 . 129 19 50 56 Gun 331 | 2 63 4 117 . . . 56 16 45 28 Cannon 335 | . 26 . 148 61 4 . 66 3 . 27 Launcher 20 | . 1 4 . 2 . . 7 . 5 1 Special . | . . . . . . . . . . . Kinetic 387 | 2 54 4 114 61 3 . 94 13 26 16 Thermal 259 | . 35 . 151 . 1 . 24 . 9 39 Explosive 20 | . 1 4 . 2 . . 7 . 5 1 Electromagnetic 20 | . . . . . . . 4 6 10 . Robot Hit Streak 27 | 1 10 2 27 10 5 . 14 4 12 11 Robot Miss Streak 23 | . 3 1 6 23 1 . 4 2 4 7 Penetration Max . | . . . . . . . . . . . Secondary Targets 2 | . 1 . . . . . . . . 1 Max Gunslinging Chain 1 | . 1 . . . . . . . . 1 Shots Hit Robots 481 | 1 51 2 183 44 4 . 96 11 48 41 Core Hits 300 | 1 29 3 81 50 4 . 64 6 19 43 Critical Kills . | . . . . . . . . . . . Critical Parts Destroyed 3 | . . . . . . . . . 3 . Critical Strikes 8 | . 2 . . . . . 1 . 5 . Burn 5 | . 2 . . . . . 1 . 2 . Smash 3 | . . . . . . . . . 3 . Melee Attacks 46 | . . . . 1 . . . . 24 21 Impact 29 | . . . . 1 . . . . 24 4 Slashing 17 | . . . . . . . . . . 17 Piercing . | . . . . . . . . . . . Sneak Attacks 1 | . . . . . . . . . . 1 Combat Hostiles . | . . . . . . . . . . . Follow-up Attacks . | . . . . . . . . . . . Damage Inflicted 11314 | 10 655 234 3570 872 115 . 2186 403 2150 1119 Guns 3268 | 10 347 14 1173 . . . 677 203 449 395 Cannons 5219 | . 214 . 2369 867 115 . 1230 42 . 382 Explosions 1440 | . 94 220 28 . . . 273 158 493 174 Melee 1376 | . . . . . . . . . 1208 168 Ramming 11 | . . . . 5 . . 6 . . . Kinetic 4670 | 10 241 14 1287 867 91 . 1539 171 195 255 Thermal 4101 | . 320 . 2255 . 24 . 348 158 414 582 Explosive 973 | . 94 220 28 . . . 273 . 244 114 Electromagnetic 183 | . . . . . . . 20 74 89 . Impact 1208 | . . . . . . . . . 1208 . Slashing 168 | . . . . . . . . . . 168 Piercing . | . . . . . . . . . . . Highest Corruption 16 | . . . . . . . 11 11 15 16 Average Corruption 11 | . . . . . . . 8 11 12 13 Corruption Purged 5 | . . . . . . . . . . 5 Corruption Blocked 8 | . . . . . . . . . . 8 Effects 142 | . . . . . . . 31 36 20 55 Message Errors 33 | . . . . . . . 5 12 2 14 Matter Fused 35 | . . . . . . . 9 8 7 11 Heat Flow Errors 13 | . . . . . . . 5 1 3 4 Energy Discharges 13 | . . . . . . . 2 2 3 6 Parts Rejected 2 | . . . . . . . . 1 . 1 Parts Fused 3 | . . . . . . . . 1 1 1 Data Loss (minor) 16 | . . . . . . . 4 3 2 7 Data Loss (major) 12 | . . . . . . . 2 5 1 4 Misfires 5 | . . . . . . . . 2 . 3 Alerts 3 | . . . . . . . 1 . . 2 Weapon Failures 7 | . . . . . . . 3 1 1 2 Overload Shots . | . . . . . . . . . . . Overflow Damage 476 | . . 8 6 . . . . . 371 91 Projectiles 2 | . . . 2 . . . . . . . Explosions 25 | . . 8 4 . . . . . . 13 Melee 449 | . . . . . . . . . 371 78 Knockbacks 41 | . . . 3 22 1 . 15 . . . Impact . | . . . . . . . . . . . Kinetic 36 | . . . 3 19 1 . 13 . . . Secondary 5 | . . . . 3 . . 2 . . . Self-Inflicted Damage 257 | . . . . 41 . . 23 . 94 99 Shots 10 | . . . . 2 . . 1 . 3 4 Rammed 2 | . . . . 1 . . 1 . . . Targets Rammed 2 | . . . . 1 . . 1 . . . Kicked . | . . . . . . . . . . . Crushed . | . . . . . . . . . . . Highest Temperature 357 | . 151 21 317 156 60 . 259 115 357 258 Average Temperature 73 | . 50 10 78 40 25 . 74 28 121 82 Received Heat Transfer 2057 | . 165 . 624 69 . . 839 . 108 252 Effects 2 | . . . 1 . . . . . . 1 Energy Bleed 1 | . . . 1 . . . . . . . Interference 1 | . . . . . . . . . . 1 Siege Activations . | . . . . . . . . . . . Robots Corrupted . | . . . . . . . . . . . Combat Hostiles . | . . . . . . . . . . . Parts Fried 10 | . . . . . . . . . 10 . Impact Corruptions 10 | . . . . . . . . . 10 . Robots Melted . | . . . . . . . . . . . Combat Hostiles . | . . . . . . . . . . . Parts Melted 13 | . 3 . 8 . . . 2 . . . Heat Transferred 6682 | . 888 . 4070 . 111 . 484 100 694 335 Parts Sabotaged . | . . . . . . . . . . . Parts Stolen . | . . . . . . . . . . . Parts Stripped . | . . . . . . . . . . . Power Chain Reactions 6 | . . . . . . . . 1 3 2 Alert | -11 -10 -10 -9 -9 -9 -7 -7 -7 -7 -7 ------- Run | Yrd Mat Min Mat Sto Rec Fac Gar Fac Gar Fac Peak Influence 779 | 5 152 133 779 512 167 204 772 693 721 551 Initial 471 | . 3 38 . 328 144 183 142 405 471 378 Average 336 | 1 78 64 411 373 61 184 473 482 637 433 Maximum Alert Level 3 | . . . 3 2 . 1 3 2 3 2 Low Security (%) 31 | 100 100 100 10 . 100 91 8 . . . Level 1 28 | . . . 45 74 . 8 33 10 . 33 Level 2 32 | . . . 30 25 . . 32 89 74 66 Level 3 7 | . . . 13 . . . 25 . 25 . Level 4 . | . . . . . . . . . . . Level 5 . | . . . . . . . . . . . High Security . | . . . . . . . . . . . Max Security . | . . . . . . . . . . . Squads Dispatched 18 | . 2 . 6 3 . . . 3 . 4 Investigation 6 | . . . 4 1 . . . . . 1 Extermination 4 | . . . . . . . . 2 . 2 Reinforcement 6 | . 2 . 2 . . . . 1 . 1 Assault 2 | . . . . 2 . . . . . . Garrison . | . . . . . . . . . . . Intercept . | . . . . . . . . . . . Searches Triggered . | . . . . . . . . . . . Construction Impeded . | . . . . . . . . . . . Haulers Reinforced 1 | . . . . . . . . 1 . . Active Scanning Responses . | . . . . . . . . . . . Cargo Convoy Interrupts 1 | . . . . . . . . . . 1 Stealth | -11 -10 -10 -9 -9 -9 -7 -7 -7 -7 -7 --------- Run | Yrd Mat Min Mat Sto Rec Fac Gar Fac Gar Fac Distress Signals 6 | . 1 . 3 1 . . . . . 1 Communications Jammed . | . . . . . . . . . . . Distress Signals . | . . . . . . . . . . . Times Spotted 167 | . 16 3 51 19 2 . 22 15 11 28 Peak Tracking Total 5 | . 4 3 5 4 1 . 4 4 5 3 Tactical Retreats 12 | . . . 3 1 . . 3 . . 5 Traps | -11 -10 -10 -9 -9 -9 -7 -7 -7 -7 -7 ------- Run | Yrd Mat Min Mat Sto Rec Fac Gar Fac Gar Fac Traps Triggered 13 | . 1 . 4 . . . 5 1 1 1 Indirectly . | . . . . . . . . . . . Trap Hack Attempts . | . . . . . . . . . . . Triggered . | . . . . . . . . . . . Disarmed . | . . . . . . . . . . . Reprogrammed . | . . . . . . . . . . . Reused . | . . . . . . . . . . . Traps Extracted . | . . . . . . . . . . . Installed . | . . . . . . . . . . . Triggered 2 | . . . . . . . . . . 2 Machines | -11 -10 -10 -9 -9 -9 -7 -7 -7 -7 -7 ---------- Run | Yrd Mat Min Mat Sto Rec Fac Gar Fac Gar Fac Machines Disabled 13 | . . . 2 2 . . 3 . 2 4 Max in Single Turn 2 | . . . 1 1 . . 1 . 1 2 Garrison Access 1 | . . . . 1 . . . . . . Garrison Relay 3 | . . . . . . . 2 . 1 . Machines Repaired . | . . . . . . . . . . . Machines Dismantled . | . . . . . . . . . . . Machines Sabotaged . | . . . . . . . . . . . Overloaded Fab Kills . | . . . . . . . . . . . Hacking | -11 -10 -10 -9 -9 -9 -7 -7 -7 -7 -7 --------- Run | Yrd Mat Min Mat Sto Rec Fac Gar Fac Gar Fac Machines Accessed 53 | . 6 . 11 16 9 2 3 3 . 3 Terminals 36 | . 4 . 9 14 5 . 3 1 . . Fabricators 1 | . . . . . . . . 1 . . Repair Stations . | . . . . . . . . . . . Recycling Units 12 | . 2 . 2 1 4 1 . . . 2 Scanalyzers . | . . . . . . . . . . . Garrison Access 4 | . . . . 1 . 1 . 1 . 1 Total Hacks 117 | . 13 . 24 36 25 2 6 5 . 6 Successful 63 | . 7 . 11 21 14 2 2 3 . 3 Failed 53 | . 5 . 13 15 11 . 4 2 . 3 Catastrophic 9 | . . . 3 1 2 . 1 1 . 1 Database Lockouts 1 | . 1 . . . . . . . . . Manual 26 | . 2 . 9 13 2 . . . . . Terminals 88 | . 11 . 22 32 15 . 6 2 . . Fabricators 1 | . . . . . . . . 1 . . Repair Stations . | . . . . . . . . . . . Recycling Units 22 | . 2 . 2 2 10 1 . . . 5 Scanalyzers . | . . . . . . . . . . . Garrison Access 6 | . . . . 2 . 1 . 2 . 1 Terminal Hacks 41 | . 5 . 9 17 7 . 2 1 . . Record 1 | . . . . . . . . 1 . . Part Schematic 5 | . . . . 2 3 . . . . . Robot Schematic 1 | . . . . . 1 . . . . . Robot Analysis 7 | . 1 . 4 1 1 . . . . . Prototype ID Bank 9 | . 2 . 2 4 1 . . . . . Open Door 4 | . . . . 3 . . 1 . . . Branch Access Points 2 | . . . 1 1 . . . . . . Emergency Access Points 1 | . . . . . . . 1 . . . Terminal Index 2 | . . . . 1 1 . . . . . Locate Traps 4 | . 1 . 1 2 . . . . . . Hauler Manifests 3 | . 1 . 1 1 . . . . . . Zone Layout 2 | . . . . 2 . . . . . . Fabricator Hacks 1 | . . . . . . . . 1 . . Build 1 | . . . . . . . . 1 . . Repair Station Hacks . | . . . . . . . . . . . Recycling Unit Hacks 14 | . 2 . 2 1 5 1 . . . 3 Report Inventory 11 | . 2 . 2 1 3 1 . . . 2 Retrieve Matter 1 | . . . . . . . . . . 1 Retrieve Components 2 | . . . . . 2 . . . . . Scanalyzer . | . . . . . . . . . . . Garrison Access Hacks 3 | . . . . 1 . 1 . 1 . . Unlock Access 2 | . . . . . . 1 . 1 . . Seal Access 1 | . . . . 1 . . . . . . Unauthorized Hacks 4 | . . . . 2 2 . . . . . Terminals 2 | . . . . 2 . . . . . . Botnet 2 | . . . . 2 . . . . . . Fabricators . | . . . . . . . . . . . Repair Stations . | . . . . . . . . . . . Recycling Units 2 | . . . . . 2 . . . . . Tunnel 2 | . . . . . 2 . . . . . Scanalyzers . | . . . . . . . . . . . Garrison Access . | . . . . . . . . . . . Data Cores Recovered . | . . . . . . . . . . . Used . | . . . . . . . . . . . Hacking Detections 39 | . 4 . 9 12 7 1 2 2 . 2 Full Trace Events 7 | . . . 2 2 1 . 1 . . 1 Feedback Events . | . . . . . . . . . . . Feedback Blocked . | . . . . . . . . . . . Robot Schematics Acquired 1 | . . . . . 1 . . . . . Robots Built . | . . . . . . . . . . . Authchips . | . . . . . . . . . . . Time 134 | . . . . . . . . 134 . . Total Robot Build Rating . | . . . . . . . . . . . Part Schematics Acquired 5 | . . . . 2 3 . . . . . Parts Built . | . . . . . . . . . . . Authchips . | . . . . . . . . . . . Time . | . . . . . . . . . . . Total Part Build Rating . | . . . . . . . . . . . Parts Repaired . | . . . . . . . . . . . Time . | . . . . . . . . . . . Parts Recycled . | . . . . . . . . . . . Recycled Matter . | . . . . . . . . . . . Retrieved Matter . | . . . . . . . . . . . Retrieved Components 6 | . . . . . 6 . . . . . Parts Scanalyzed . | . . . . . . . . . . . Part Schematics Acquired . | . . . . . . . . . . . Parts Damaged . | . . . . . . . . . . . Bothacking | -11 -10 -10 -9 -9 -9 -7 -7 -7 -7 -7 ------------ Run | Yrd Mat Min Mat Sto Rec Fac Gar Fac Gar Fac Used RIF Installer . | . . . . . . . . . . . Robots Hacked . | . . . . . . . . . . . Non-combat . | . . . . . . . . . . . Combat . | . . . . . . . . . . . Robot Hacks Applied . | . . . . . . . . . . . Relay Couplers Released 19 | . . . . . . . 8 3 8 . Machine Destruction 12 | . . . . . . . 8 . 4 . Programmers 7 | . . . . . . . . 3 4 . Fabnet Peak Effective % . | . . . . . . . . . . . Robots Rewired . | . . . . . . . . . . . Allies Hacked . | . . . . . . . . . . . Hacks Repelled . | . . . . . . . . . . . Allies | -11 -10 -10 -9 -9 -9 -7 -7 -7 -7 -7 -------- Run | Yrd Mat Min Mat Sto Rec Fac Gar Fac Gar Fac Total Allies 22 | . . 3 . 12 . . 4 3 . . Largest Group 10 | . . 3 3 10 2 1 3 5 2 . Highest-Rated Group 268 | . . 40 40 88 62 31 175 268 175 . Highest-Rated Ally 95 | . . 16 16 31 31 31 95 95 95 . Total Orders 3 | . . . . 3 . . . . . . STAY 2 | . . . . 2 . . . . . . FOLLOW 1 | . . . . 1 . . . . . . Ally Attacks 142 | . . . 12 40 12 . 14 46 18 . Total Damage 3377 | . . . 120 400 193 . 296 1576 792 . Kills 35 | . . . 1 6 3 . . 19 6 . Allies Corrupted . | . . . . . . . . . . . Allies Melted . | . . . . . . . . . . . Intel | -11 -10 -10 -9 -9 -9 -7 -7 -7 -7 -7 ------- Run | Yrd Mat Min Mat Sto Rec Fac Gar Fac Gar Fac Robot Analysis Total 7 | . 1 . 4 1 1 . . . . . Derelict Logs Recovered 1 | . . 1 . . . . . . . . Drone Launches . | . . . . . . . . . . . Drone Recoveries . | . . . . . . . . . . . Exploration | -11 -10 -10 -9 -9 -9 -7 -7 -7 -7 -7 ------------- Run | Yrd Mat Min Mat Sto Rec Fac Gar Fac Gar Fac Turns Passed 11219 | 72 955 626 1922 1579 1379 145 1617 878 474 1572 Spaces Moved 5523 | 40 488 382 853 641 627 67 533 449 277 1166 Core 10 | 8 . . . . . . . . 2 . Treads 1710 | 32 488 382 623 122 . . 3 . . 60 Legs 886 | . . . . . . . 38 19 157 672 Wheels 2547 | . . . 230 519 627 67 492 430 113 69 Hover 370 | . . . . . . . . . 5 365 Flight . | . . . . . . . . . . . Fastest Speed 50 | 50 160 160 125 210 195 210 195 105 75 64 Average Speed 165 | 138 160 160 164 214 207 210 247 178 112 90 Slowest Speed 750 | 160 160 160 240 235 210 210 750 210 450 229 Overloaded Moves . | . . . . . . . . . . . Propulsion Burnouts . | . . . . . . . . . . . Robots Hopped . | . . . . . . . . . . . Cave-ins Triggered . | . . . . . . . . . . . Exploration Rate (%) 52 | 4 81 93 83 88 99 2 55 12 31 31 Regions Visited 10 Branch Regions 3 Pre-discovered Areas 2 | . . . . . 2 . . . . . Known Exits Taken 4 | . . . 1 1 . 1 . 1 . . Unknown Exits Taken 4 | 1 1 1 . . 1 . . . . . Scrap Searched 1 | . . 1 . . . . . . . . Spaces Dug 37 | . . . . 22 . . . . . 15 Terrain Destroyed 183 | . 7 31 5 22 . . 43 7 7 61 Melee 15 | . . . . . . . . . . 15 Projectile 4 | . . . . . . . 1 . . 3 AOE 164 | . 7 31 5 22 . . 42 7 7 43 Terrain Rammed . | . . . . . . . . . . . Walls Destroyed . | . . . . . . . . . . . Machines Disabled . | . . . . . . . . . . . Actions | -11 -10 -10 -9 -9 -9 -7 -7 -7 -7 -7 --------- Run | Yrd Mat Min Mat Sto Rec Fac Gar Fac Gar Fac Total 6876 | 52 584 391 1123 779 708 71 709 514 355 1590 Wait 608 | . 13 . 44 68 49 . 45 26 18 345 Move 5513 | 39 487 381 852 640 626 66 531 449 276 1166 Hop . | . . . . . . . . . . . Pick Up 94 | 5 16 1 27 13 12 1 6 4 3 6 Fast Attach 32 | 7 3 . 7 . 1 1 3 2 3 5 Attach 32 | . . . 6 3 1 3 11 1 4 3 Detach 7 | . . . . . . . 3 1 . 3 Swap 55 | . 9 3 20 11 . . 6 3 . 3 Drop 100 | . 10 2 33 8 15 . 3 19 1 9 Fire 358 | 1 46 4 134 33 4 . 72 9 26 29 Melee 46 | . . . . 1 . . . . 24 21 Ram 1 | . . . . 1 . . . . . . Kick . | . . . . . . . . . . . Crush 1 | . . . . . . . 1 . . . Escape Stasis 28 | . . . . . . . 28 . . . Rewire 1 | . . . . 1 . . . . . . Trap . | . . . . . . . . . . . Miscellaneous . | . . . . . . . . . . . Route ------- -11/Scrapyard -10/Materials (discovered 4 exits: *Mat x3 / [*Min]) -10/Mines (discovered 2 exits: *Mat x2) -9/Materials (discovered 6 exits: [*Mat x2] / *Min x2 / *Sto x2) -9/Storage (discovered 2 exits: [*Mat] / *Rec) -9/Recycling -7/Factory -7/Garrison (discovered 2 exits: *Fac x2) -7/Factory (discovered 2 exits: [*Low] / Gar) -7/Garrison -7/Factory (discovered 1 exit: *Fac) History --------- Turn | Location | Event 14 | -11/Scrapyard | Discovered new exit (range 16) 73 | -11/Scrapyard | Entered Materials 301 | -10/Materials | Build established: Mutant 309 | -10/Materials | Discovered new exit (range 9) 396 | -10/Materials | Discovered new exit (range 15) 529 | -10/Materials | Central database locked down 530 | -10/Materials | Discovered new exit (range 15) 817 | -10/Materials | Discovered new exit (range 4) 1028 | -10/Materials | Entered Mines 1064 | -10/Mines | Received a Rocket Launcher from a helpful Derelict 1158 | -10/Mines | Discovered new exit (range 15) 1421 | -10/Mines | A weapon hastily lodged in a ceiling crevice suddenly fell to the ground 1433 | -10/Mines | Learned Materials emergency access door positions 1513 | -10/Mines | Discovered new exit (range 9) 1550 | -10/Mines | Found a hidden stash of uninstalled traps 1648 | -10/Mines | Assisted by bots powering up and referring to "LRC-V3" 1654 | -10/Mines | Entered Materials 1654 | -9/Materials | Accompanied by 3 allies 1654 | -9/Materials | Evolved 2 slots: Propulsion x1, Utility x1 1753 | -9/Materials | Lost 3 allies 1927 | -9/Materials | Discovered new exit (range 16) 1968 | -9/Materials | Identified exit to Mines 1968 | -9/Materials | Identified exit to Storage 2249 | -9/Materials | Build established: Scavenger-Mutant 2675 | -9/Materials | Discovered new exit (range 15) 2699 | -9/Materials | Core integrity fell below 50% 2866 | -9/Materials | Build established: Mutant 3253 | -9/Materials | Discovered new exit (range 9) 3374 | -9/Materials | Core integrity fell below 20% 3576 | -9/Materials | Entered Storage 3698 | -9/Storage | Identified exit to Recycling 4204 | -9/Storage | Assisted by bots powering up and referring to "LRC-V3" 4490 | -9/Storage | Build established: Commander-Mutant 4550 | -9/Storage | Discovered new exit (range 16) 4879 | -9/Storage | Lost 4 allies 5108 | -9/Storage | Lost 3 allies 5124 | -9/Storage | Met a pair of Derelict thieves 5147 | -9/Storage | Used back door to open Recycling access 5153 | -9/Storage | Build established: Mutant 5155 | -9/Storage | Entered Recycling 5155 | -9/Recycling | Accompanied by 2 allies 5156 | -9/Recycling | Found Scrap Engine 5667 | -9/Recycling | Build established: Construct 6442 | -9/Recycling | Discovered new exit (range 16) 6534 | -9/Recycling | Entered Factory 6534 | -7/Factory | Accompanied by 1 ally 6534 | -7/Factory | Evolved 4 slots: Utility x3, Weapon x1 6666 | -7/Factory | Identified exit to Garrison 6679 | -7/Factory | Entered Garrison 6679 | -7/Garrison | Accompanied by 1 ally 6737 | -7/Garrison | Triggered checkpoint 6817 | -7/Garrison | Rescued a captive Derelict 6818 | -7/Garrison | Rescued a captive Derelict 6841 | -7/Garrison | Build established: Mutant 6854 | -7/Garrison | Garrison Relay disabled 6895 | -7/Garrison | Lost 3 allies 7109 | -7/Garrison | Triggered checkpoint 7257 | -7/Garrison | Lost 5 parts (1p2n1u1w) 7437 | -7/Garrison | Lost 4 parts (1u3w) 7650 | -7/Garrison | Discovered new exit (range 12) 7727 | -7/Garrison | Triggered checkpoint 7761 | -7/Garrison | Garrison Relay disabled 7867 | -7/Garrison | System corruption reached 10% 7935 | -7/Garrison | Build established: Scavenger-Gunner 8008 | -7/Garrison | Attempted to access garrison exit controls, blocked by remote lockdown 8143 | -7/Garrison | Triggered checkpoint 8235 | -7/Garrison | Discovered new exit (range 8) 8251 | -7/Garrison | Found embedded Infiltrators 8296 | -7/Garrison | Entered Factory 8296 | -7/Factory | Accompanied by 2 allies 8459 | -7/Factory | Allied Derelicts emerged from ambush trap array 8490 | -7/Factory | Discovered new exit (range 3) 9174 | -7/Factory | Identified exit to Garrison 9174 | -7/Factory | Entered Garrison 9174 | -7/Garrison | Accompanied by 2 allies 9275 | -7/Garrison | Garrison Relay disabled 9336 | -7/Garrison | Triggered checkpoint 9338 | -7/Garrison | Triggered checkpoint 9359 | -7/Garrison | Triggered checkpoint 9386 | -7/Garrison | Core integrity fell below 50% 9433 | -7/Garrison | Lost 8 parts (3n2u3w) 9640 | -7/Garrison | Discovered new exit (range 12) 9648 | -7/Garrison | Entered Factory 9682 | -7/Factory | Build established: Mutant 9797 | -7/Factory | Core integrity fell below 20% 9839 | -7/Factory | Discovered new exit (range 9) 9861 | -7/Factory | Identified exit to Factory 10027 | -7/Factory | Build established: Construct 10632 | -7/Factory | Cargo convoy interrupted 11220 | -7/Factory | Destroyed by G-47 Trooper with Particle Gun Last Messages --------------- Time/Move +49, Penalty -31, Coverage +31, Burnout -10 Renamed Titanium-Cooled Exoskeleton. 11153_ Scrap Engine modifies Titanium-Cooled Exoskeleton: Time/Move -37, Support -9, Max Integrity -117 Renamed Hovering Airjet-Cooled Exoskeleton. 11153_ System corrupted: Component data lost. 11178_ YT0T,MQY201L YNT&W699 11198_ System corrupted: Energy discharge (-23). 11201_ K-01 Serf cleans the Assembly Bed. 11205_ U-05 Engineer builds a Wall. 11206_ K-01 Serf cleans the Assembly Bed. 11209_ U-05 Engineer builds a Wall. 11209_ K-01 Serf cleans the Assembly Bed. 11214_ Sneak attack on U-05 Engineer. 11214_ Destroyed Structural Scanner. 11214_ Destroyed Lgt. Ion Engine. 11219_ System corrupted: Coolant Injector rejected. Map ----- +----------------------------------------------------+ | ?????????????????????????????????????????????????? | | ?????????????????????????????????????????????????? | | ?????????????????????????????????????????????????? | | ?????????????????????????????????????????????????? | | ?????????????????????????????????????????????????? | | ?????????????????????????????????????????????????? | | ?????????????????????????????????????????????????? | | ?????????????????????????????????????????????????? | | ?????????????????????????????????????????????????? | | ?????????????????????????????????????????????????? | | ?????????????????????????????????????????????????? | | ???? ???????????????????????????????????????????? | | ???# ???????????????????????????????????????????? | | ???# ????"??????????????????????????????????????? | | ???# ??? ??????????????????????????????????????? | | ???# """ "???""?????????????????????????????????? | | ???# """ """ """ ?"? ??????????????????????????? | | ???# """ """ """ """ #????????????????########## | | ???# #????????????????# | | ???# #????????????????# | | ???# #????????????????# | | ???# ?? #????????????????# | | ???+ #????# #????????????????# ! | | ???# #????# #?##############?# | | ???# ?????# ### u #?# | | ???? ? ???### ##@ """" """" #?# | | ######+####/##?# rg#gg"""" """" #?#####+#### | | # #?# k # """" """" ###### ### | | # #?# # """" """" + | | # ### # """" """" ###### ### | | # """ """ + +% """" """" #????#####?? | | # """ """ ### %# k #??????????? | | # """ """ #?# # #??????????? | | # #?# # #??????????? | | # """ """ #?# # #??????????? | | # """ """ #?## ## #??????????? | | # """ """ #??# ###############??????????? | | # #??# ???????????? | | # #??# ??????????? | | ################# ????????????? | | ! / ????????????? | | ##### """ ""??????????????? | | #???# """ """?????????????? | | #???# """ """?????????????? | | #???########## "" "" ????????????? | | !! #????????????# "" "" "??????????? | | !! < #???????????## ???????? | | !! #???????????# """ """ """?????????? | | #???????????#T """ """ ""??????????? | | ! #???????????## """ """ ""??????????? | +----------------------------------------------------+ Best States ------------- Heat Dissipation 48 Coolant Potential 65 Energy Generation 16 Energy Capacity 280 Matter Stores 300 Matter Capacity 300 Sight Range 16 Terrain Scan Range 16 Terrain Scan Density 10 ECM Strength 2 Armor Coverage 225 Evasion (%) 62 Targeting Accuracy 6 Target Analysis 5 Recoil Reduction 3 Offensive Hacking 10 Authchip Count 1 Item Schematics ----------------- Arm. Wheel | -9/Storage | Hacked Arc Projector | -9/Storage | Hacked Imp. Light Cannon | -9/Recycling | Hacked Shotgun | -9/Recycling | Hacked Assault Cannon | -9/Recycling | Hacked Robot Schematics ------------------ A-02 Transporter | -9/Recycling | Hacked Fabricated ------------ Nothing Alien Tech Used ----------------- None Achievements -------------- None Challenges ------------ None Game ------ Seed GhostSmartbombMonowheel Manual? 0 Play Time 01:28:20 Cumulative 47.4 hours Start 2024.04.25 @ 20:17:24 End 2024.04.25 @ 21:45:15 Sessions 1 Manual Loads 0 Difficulty Rogue Special Mode None Game No. 62 Rogue 62 Adventurer 0 Explorer 0 Win Type - Total 1 Types 1/0/0/0/0/0/0/0/0 Lore% 27 Gallery% 42 Achievement% 31 Wizard Run 0 Options --------- Layout 1 ASCII 0 Keyboard 0 Movement Mouse Keybinds 0 Fullscreen 1 Font 24/Smallcaps Map View 50x35 Zoom Use 0% Tactical HUD 1 Map Filters NONE Filters NONE Steam 1 RUN: 02e4de5e-9c5e-41f2-a78e-158c581e262a